bitfinex-derivatives/quotes_ETHF0:USTF0_20250421
["timestamp","ask_amount","ask_price","bid_price","bid_amount"]
[1745253996205,1e-08,1608.7,1608.6,14.86136001]
[1745253996410,1.24309001,1608.7,1608.6,12.30020001]
[1745253997711,1.24309001,1608.7,1608.6,13.54336001]
[1745253997916,1e-08,1608.7,1608.6,13.54336001]
[1745253999017,1.24309001,1608.7,1608.6,13.54336001]
[1745253999415,1.24332,1608.4,1608.3,0.0093052]
[1745253999619,1.24355,1608.1,1608.0,1.2764]
[1745254000118,1.24355,1608.1,1608.0,7.49400001]
[1745254000320,1.24353,1608.2,1608.1,1.24355]
[1745254000618,1.24353,1608.2,1608.1,6.21760001]
[1745254000822,1.2437,1607.9,1607.8,1.2764]
[1745254001121,1.2437,1607.9,1607.8,2.9321]
[1745254001325,2.96594,1608.0,1607.8,10.39348001]
[1745254001616,2.96593,1608.0,1607.9,7.87330001]
[1745254001814,2.96593,1608.0,1607.9,6.21760001]
[1745254002413,1.24378,1607.8,1607.7,0.00931401]
[1745254002618,4.45158,1607.8,1607.7,0.00931401]
[1745254003221,6.17388,1607.8,1607.7,0.00931401]
[1745254004220,11.26888,1607.8,1607.7,0.00931401]
[1745254004922,1.24365,1608.0,1607.8,1.24371]
[1745254005123,1.24365,1608.0,1607.9,1.6338]
[1745254005421,1.24365,1608.0,1607.9,2.8775]
[1745254005617,1.24365,1608.0,1607.9,1.6338]
[1745254005827,2.99935,1608.0,1607.9,1.6338]
[1745254006417,1.7557,1608.0,1607.9,2.8775]
[1745254006619,3.2078,1608.1,1608.0,1.24363]
[1745254006811,4.45138,1608.1,1608.0,3.01183]
[1745254007012,1.24378,1607.8,1607.7,1.25312401]
[1745254007819,1.24378,1607.8,1607.7,0.00931401]
[1745254008021,2.99508,1607.8,1607.7,0.00931401]
[1745254008219,2.99508,1607.8,1607.7,1.77751401]
[1745254008624,2.99508,1607.8,1607.7,0.00931401]
[1745254008922,8.09108,1607.8,1607.7,0.00931401]
[1745254009520,13.09108,1607.8,1607.7,0.00931401]
[1745254010118,19.67566084,1607.8,1607.7,0.00931401]
[1745254010919,14.67566084,1607.8,1607.7,0.00931401]
[1745254011115,8.09108,1607.8,1607.7,0.0093052]
[1745254011320,20.13919824,1607.8,1607.7,4.01e-06]
[1745254012125,15.03913597,1607.8,1607.7,4.01e-06]
[1745254012319,8.09108,1607.8,1607.7,4.01e-06]
[1745254012526,13.19115258,1607.8,1607.7,4.01e-06]
[1745254012727,20.11660438,1607.8,1607.7,4.01e-06]
[1745254013222,30.40660438,1607.8,1607.7,4.01e-06]
[1745254013921,30.40659984,1607.8,1607.7,4.01e-06]
[1745254014926,1.24432,1607.1,1607.0,0.02553]
[1745254015628,3.03962,1607.1,1607.0,0.02553]
[1745254019118,0.0093052,1607.2,1607.0,4.89663]
[1745254019424,1.24432,1607.1,1607.0,4.89663]
[1745254019929,8.3068,1607.9,1607.4,3.11017]
[1745254020132,1.24381,1607.8,1607.7,1.24382]
[1745254020331,1.7602,1608.0,1607.6,3.2078]
[1745254020526,1.24383,1607.8,1607.7,1.6633]
[1745254020725,1.24374,1607.9,1607.8,1.24378]
[1745254020919,1.24374,1607.9,1607.8,3.2078]
[1745254021119,1.24374,1607.9,1607.7,1.6633]
[1745254021120,1.24378,1607.8,1607.7,0.0093052]
[1745254021325,3.00398,1607.8,1607.7,0.0093052]
[1745254021626,8.3068,1607.9,1607.7,5.0093052]
[1745254021627,4.45155,1607.9,1607.7,5.0093052]
[1745254021828,1.24375,1607.9,1607.8,4.8711]
[1745254022327,1.24375,1607.9,1607.8,1.6633]
[1745254022523,2.97175,1607.9,1607.8,1.6633]
[1745254022727,0.0093052,1608.0,1607.8,9.8711]
[1745254022927,1.2529352,1608.0,1607.9,1.2437]
[1745254023127,1.2437,1607.9,1607.8,4.8711]
[1745254023337,1.2437,1607.9,1607.8,4.45158]
[1745254023634,1.2529552,1608.0,1607.9,1.2437]
[1745254024130,1.2437,1607.9,1607.8,3.2078]
[1745254024335,3.2171052,1608.0,1607.7,1.2531352]
[1745254024628,1.24378,1607.8,1607.7,3.2171052]
[1745254024932,1.24376,1607.9,1607.7,3.2171052]
[1745254025128,0.0093052,1608.0,1607.7,4.4609252]
[1745254025327,0.0093052,1608.0,1607.7,3.2171052]
[1745254025639,1.24371,1607.9,1607.8,1.24372]
[1745254025930,1.24378,1607.8,1607.7,3.2171052]
[1745254026133,0.0093052,1608.0,1607.7,3.2171052]
[1745254026333,1.24378,1607.8,1607.7,3.2171052]
[1745254027128,1.24375,1607.9,1607.7,8.2171052]
[1745254027334,1.2529952,1608.0,1607.9,1.2437]
[1745254027529,0.0093052,1608.0,1607.9,4.4515]
[1745254027737,1.2529352,1608.0,1607.9,4.4515]
[1745254028131,1.2529352,1608.0,1607.9,3.2078]
[1745254028441,0.0093052,1608.0,1607.9,6.2437]
[1745254028736,8.21012,1608.5,1607.9,8.2078]
[1745254028938,1.24354,1608.2,1608.1,3.2078]
[1745254029137,1.24354,1608.2,1608.1,4.45135]
[1745254029337,1.24354,1608.2,1608.1,9.45135]
[1745254029634,6.3453,1608.5,1608.3,1.24339]
[1745254029832,19.36200127,1608.8,1608.4,1.24326]
[1745254030034,1.2525052,1608.6,1608.5,4.45104]
[1745254030337,0.0093052,1608.6,1608.5,4.45104]
[1745254030540,0.0093052,1608.6,1608.5,9.45104]
[1745254030734,1.2524652,1608.6,1608.5,4.45104]
[1745254030930,0.0093052,1608.6,1608.5,4.45104]
[1745254031431,0.0093052,1608.6,1608.5,9.45104]
[1745254031826,0.0093052,1608.6,1608.0,6.31673]
[1745254032133,1.2524852,1608.6,1608.5,3.2078]
[1745254032530,0.0093052,1608.6,1608.5,4.45104]
[1745254033133,1.24332,1608.4,1608.3,4.5366]
[1745254034338,3.10862,1608.3,1607.7,3.2171052]
[1745254034533,4.45158,1607.8,1607.7,0.0093052]
[1745254035234,11.08518,1607.8,1607.7,1e-08]
[1745254035534,18.23484792,1607.8,1607.7,1e-08]
[1745254035743,19.45434792,1607.8,1607.7,1e-08]
[1745254036439,19.55452949,1607.8,1607.7,1e-08]
[1745254036631,1.24394,1607.6,1607.5,7.58538601]
[1745254036831,9.55274,1607.6,1607.5,4.30343601]
[1745254037034,9.55274,1607.6,1607.5,2.98627601]
[1745254037035,21.18626247,1607.6,1607.5,2.98627601]
[1745254037240,21.18626247,1607.6,1607.5,6.01e-06]
[1745254037538,21.28639769,1607.6,1607.5,6.01e-06]
[1745254038139,1.24401,1607.5,1607.4,1.21e-06]
[1745254038336,2.98862742,1607.5,1607.4,1.21e-06]
[1745254038535,14.47696091,1607.5,1607.4,1.21e-06]
[1745254042041,14.37685616,1607.5,1607.4,1.21e-06]
[1745254042346,9.4769436,1607.5,1607.4,1.21e-06]
[1745254042540,9.37685616,1607.5,1607.4,1.21e-06]
[1745254042737,2.88851,1607.5,1607.4,1.21e-06]
[1745254044042,9.86942029,1607.5,1607.4,1.21e-06]
[1745254044244,14.97242029,1607.5,1607.4,1.21e-06]
[1745254044643,15.07253333,1607.5,1607.4,1.21e-06]
[1745254044844,14.97242029,1607.5,1607.4,1.21e-06]
[1745254045143,20.07254194,1607.5,1607.4,1.21e-06]
[1745254045548,15.07254194,1607.5,1607.4,1.21e-06]
[1745254046640,20.07254194,1607.5,1607.4,1.21e-06]
[1745254046842,1.24463,1606.7,1606.6,3.2078]
[1745254047036,1.2451,1606.1,1606.0,3.2078]
[1745254047237,1.24533,1605.8,1605.7,20.64610315]
[1745254047543,16.66098091,1605.8,1605.7,13.79609315]
[1745254047741,21.76090551,1605.8,1605.7,7.00727315]
[1745254047932,1.24564,1605.4,1605.3,7.25977521]
[1745254048139,9.55744,1605.4,1605.3,2.63182521]
[1745254048338,115.98243048,1605.4,1605.3,5.21e-06]
[1745254048534,3.2078,1604.5,1603.8,38.9980407]
[1745254048737,5.984,1605.3,1603.8,38.88950286]
[1745254048738,3.2078,1604.1,1603.8,38.88950286]
[1745254048941,3.2078,1604.8,1604.0,3.2078]
[1745254049242,3.2078,1604.8,1604.5,3.2078]
[1745254049542,3.2078,1605.1,1604.6,5.739]
[1745254049841,3.2078,1604.9,1604.5,0.00933619]
[1745254050353,0.00933619,1605.0,1604.7,1.24614]
[1745254050744,0.00933619,1605.0,1604.8,1.24605]
[1745254050945,0.00933619,1605.0,1604.9,1.24603]
[1745254051140,0.00933619,1605.0,1604.7,9.45395]
[1745254051449,3.2078,1604.9,1604.5,6.99666619]
[1745254051645,6.01630715,1604.6,1604.5,10.20446619]
[1745254052041,6.01630715,1604.6,1604.5,15.20446619]
[1745254052240,6.01630715,1604.6,1604.5,9.46346619]
[1745254052542,0.00933619,1605.0,1604.9,1.24603]
[1745254052748,0.00933619,1605.0,1604.9,10.19483]
[1745254053052,11.40558149,1605.7,1605.6,1.24549]
[1745254053249,9.79893149,1605.7,1605.6,10.19429]
[1745254053441,8.52505149,1605.7,1605.6,55.99429]
[1745254053642,6.94094149,1605.7,1605.6,55.99429]
[1745254053838,8.29366691,1605.8,1605.7,1.24541]
[1745254054047,17.2350973,1605.9,1605.8,1.24533]
[1745254054337,10.41718349,1605.9,1605.8,4.45313]
[1745254054551,11.71142822,1606.1,1606.0,1.24518]
[1745254054750,11.71142822,1606.1,1606.0,15.19598]
[1745254055050,8.46971822,1606.1,1606.0,9.45298]
[1745254055237,3.2078,1606.9,1606.3,3.11222]
[1745254055439,3.2078,1606.7,1606.3,3.2078]
[1745254055643,1.7768,1606.6,1606.4,1.24484]
[1745254055838,3.2078,1606.5,1606.0,5.743]
[1745254056043,1.7768,1606.4,1606.2,1.24502]
[1745254056249,13.0046438,1606.4,1606.2,40.8]
[1745254056446,14.4356438,1606.3,1606.2,40.8]
[1745254056749,3.21713619,1606.7,1606.2,40.8]
[1745254056953,11.2278438,1606.6,1606.5,1.24476]
[1745254057251,13.54914577,1606.6,1606.5,1.24476]
[1745254057953,13.54914577,1606.6,1606.4,7.23683]
[1745254058151,13.54914577,1606.6,1606.4,6.00133619]
[1745254058458,0.54450197,1606.5,1606.4,7.24615619]
[1745254059849,0.54450197,1606.5,1606.4,2.48180946]
[1745254060050,0.54450197,1606.5,1606.4,1.24482]
[1745254060252,0.54450197,1606.5,1606.4,7.23682]
[1745254060653,0.54450197,1606.5,1606.4,1.24482]
[1745254060853,0.54450197,1606.5,1606.4,7.23682]
[1745254061453,1.24531,1605.9,1605.2,6.32223]
[1745254061752,3.2078,1605.7,1605.6,1.24549]
[1745254062147,14.4356438,1605.7,1605.6,1.24549]
[1745254062347,3.75230197,1605.7,1605.6,1.24549]
[1745254062547,0.54450197,1605.7,1605.6,1.24549]
[1745254063552,0.54450197,1605.7,1605.6,7.23749]
[1745254063948,3.75230197,1605.7,1605.5,1.2455]
[1745254064148,3.11392,1605.5,1604.9,1.24596]
[1745254064451,1.24587,1605.1,1605.0,1.24594]
[1745254064655,4.45365,1605.2,1605.0,42.04594]
[1745254064851,11.2278438,1605.1,1605.0,42.04594]
[1745254065047,11.77234577,1605.1,1605.0,42.04594]
[1745254065543,3.2078,1605.5,1605.1,3.11469]
[1745254065749,14.4356438,1605.5,1605.4,1.24564]
[1745254065951,11.2278438,1605.5,1605.4,1.24564]
[1745254066151,5.0183,1605.7,1605.3,40.8]
[1745254066457,16.2461438,1605.7,1605.6,1.24549]
[1745254066751,12.4733638,1605.6,1605.5,5.993]
[1745254066958,1.24559,1605.5,1605.4,5.993]
[1745254067150,1.24564,1605.4,1605.2,4.45357]
[1745254067345,1.8105,1605.3,1605.2,10.4466]
[1745254067751,13.0383438,1605.3,1605.2,10.4466]
[1745254067950,1.24569,1605.4,1605.2,10.44655]
[1745254068150,1.24572,1605.3,1605.2,3.2078]
[1745254068660,17.3308638,1605.3,1605.1,46.793]
[1745254069154,17.3308638,1605.3,1605.2,1.2458]
[1745254069356,11.2278438,1605.2,1604.8,9.10927]
[1745254069658,11.2278438,1605.2,1605.1,1.24587]
[1745254069850,14.1231438,1605.2,1605.1,1.24587]
[1745254070046,12.8773438,1605.2,1605.1,1.24587]
[1745254070446,12.8773438,1605.2,1605.0,40.8]
[1745254070652,14.1231738,1605.2,1605.1,1.24587]
[1745254070949,12.8773438,1605.2,1605.1,1.24587]
[1745254071348,1.6495,1605.2,1605.1,7.23987]
[1745254071760,3.2078,1605.3,1605.2,1.2458]
[1745254072460,15.6813638,1605.3,1605.2,7.2398]
[1745254072662,17.4881638,1605.3,1605.2,7.2398]
[1745254072856,3.2078,1605.6,1605.2,5.994]
[1745254073058,5.0146,1605.6,1605.5,1.24556]
[1745254073368,0.00933619,1605.8,1605.7,1.24541]
[1745254073559,1.25466619,1605.8,1605.7,5.994]
[1745254073761,12.48250999,1605.8,1605.7,7.23941]
[1745254073958,24.92578479,1605.8,1605.7,5.994]
[1745254074358,11.23717999,1605.8,1605.7,7.23941]
[1745254074661,0.00933619,1605.8,1605.7,7.23941]
[1745254075451,0.00933619,1605.8,1605.7,12.23941]
[1745254075653,3.98937998,1606.1,1606.0,1.24518]
[1745254076256,3.98937998,1606.1,1606.0,42.04518]
[1745254076859,1.24518,1606.0,1605.9,0.00933619]
[1745254077058,14.1780238,1606.0,1605.9,0.00933619]
[1745254077261,12.9328438,1606.0,1605.9,0.00933619]
[1745254077453,26.6212986,1606.0,1605.9,0.00933619]
[1745254077654,27.16680414,1606.0,1605.9,0.00933619]
[1745254078457,25.92162414,1606.0,1605.9,1.25458619]
[1745254078664,13.47834934,1606.0,1605.9,0.00933619]
[1745254078862,27.16680414,1606.0,1605.9,0.00933619]
[1745254079361,32.16680414,1606.0,1605.9,0.00933619]
[1745254079659,28.62050414,1606.0,1605.9,0.00933619]
[1745254080166,3.70420554,1606.0,1605.9,1.25458619]
[1745254080553,4.94938554,1606.0,1605.9,0.00933619]
[1745254080752,3.11398,1605.5,1605.1,1.2458]
[1745254080959,1.24593,1605.1,1604.6,9.10851]
[1745254081160,1.79150554,1605.0,1604.8,1.24608]
[1745254081464,1.24623,1604.7,1604.5,1.24629]
[1745254081661,3.2078,1604.6,1604.5,1.24629]
[1745254081864,3.11586,1604.5,1603.5,9.44327]
[1745254082163,0.54550554,1604.4,1603.6,12.22789]
[1745254082358,5.54e-06,1604.4,1604.3,1.2465]
[1745254082667,11.2278438,1604.4,1604.3,5.993]
[1745254082864,20.4633186,1604.4,1603.7,3.11733]
[1745254083060,23.6711186,1604.4,1603.9,3.11702]
[1745254083255,1.2465,1604.3,1604.1,1.24659]
[1745254083459,3.2078,1604.2,1603.9,5.995]
[1745254083657,15.6822238,1604.2,1604.0,1.2467]
[1745254083855,1.24673,1604.0,1603.6,0.0153]
[1745254084161,3.2078,1603.9,1603.7,1.24691]
[1745254084361,3.2078,1603.9,1603.8,40.8]
[1745254084554,14.4356438,1603.9,1603.6,5.995]
[1745254084760,24.9179486,1603.9,1603.6,1.24699]
[1745254085066,3.2078,1603.7,1603.6,7.24201]
[1745254085371,1.24707,1603.6,1603.4,1.24719]
[1745254085564,4.9156,1603.5,1603.3,7.24224]
[1745254085767,16.1434438,1603.5,1603.3,7.24224]
[1745254085972,16.1434438,1603.5,1603.3,5.938]
[1745254086174,3.2078,1603.7,1603.6,1.24704]
[1745254086466,4.45477,1603.7,1603.5,5.94]
[1745254086664,1.7037,1603.6,1603.5,1.24712]
[1745254086867,3.2078,1603.9,1603.8,1.24688]
[1745254087067,0.00933619,1604.0,1603.9,1.24681]
[1745254087665,3.98937998,1604.4,1604.0,3.11678]
[1745254087868,3.98937998,1604.4,1604.3,1.2465]
[1745254088375,1.2466,1604.2,1604.0,1.24671]
[1745254088573,3.2078,1604.2,1604.1,1.24665]
[1745254088758,1.7037,1604.3,1604.2,1.24657]
[1745254088965,3.2078,1604.7,1604.6,1.24626]
[1745254089167,23.6711186,1604.7,1604.3,1.2465]
[1745254089369,11.2278438,1604.6,1604.2,5.94]
[1745254089570,21.7096386,1604.6,1604.1,3.2078]
[1745254089764,3.2078,1604.4,1604.3,1.2465]
[1745254090266,25.4793186,1604.4,1604.3,1.2465]
[1745254090669,26.7257486,1604.4,1604.2,7.18752]
[1745254090862,25.4793186,1604.4,1604.3,1.2465]
[1745254091175,5.016,1604.4,1604.3,1.2465]
[1745254091570,25.4793186,1604.4,1604.2,1.26111]
[1745254091765,12.4743438,1604.3,1604.2,0.0146]
[1745254091970,12.9941438,1604.3,1604.2,1.26117]
[1745254092170,22.2296186,1604.3,1603.8,3.12652619]
[1745254092374,15.6822338,1604.2,1604.0,1.2467]
[1745254092573,4.9741,1604.1,1604.0,1.2467]
[1745254092771,16.2019438,1604.1,1604.0,1.2613]
[1745254092974,1.7663,1604.1,1604.0,0.0146]
[1745254093276,25.4374186,1604.1,1604.0,1.24673]
[1745254093875,25.4374186,1604.1,1603.9,1.26136]
[1745254094081,11.2278438,1604.0,1603.9,0.0146]
[1745254094267,14.78023876,1604.0,1603.9,0.0146]
[1745254094580,2.30566496,1604.0,1603.9,42.04681]
[1745254095879,22.76898356,1604.0,1603.9,1.24681]
[1745254096067,2.30566496,1604.0,1603.9,1.24681]
[1745254096273,2.30566496,1604.0,1603.9,42.04681]
[1745254098073,27.76898356,1604.0,1603.8,0.02393619]
[1745254098273,17.5528338,1603.9,1603.3,3.11819]
[1745254098477,3.2078,1603.5,1603.4,1.24719]
[1745254098684,3.2078,1603.5,1603.4,42.04719]
[1745254099280,3.74716496,1603.5,1603.4,42.04719]
[1745254099982,5.46756496,1603.5,1603.4,42.04719]
[1745254100489,25.93088356,1603.5,1603.4,42.04719]
[1745254100981,5.46756496,1603.5,1603.4,47.98919]
[1745254101185,3.2078,1603.7,1603.4,46.742]
[1745254101486,20.4633186,1604.0,1603.6,3.2078]
[1745254101682,20.4633186,1604.0,1603.9,1.24681]
[1745254101883,11.2278438,1603.9,1603.8,7.18984]
[1745254102075,11.2278438,1603.9,1603.8,1.24684]
[1745254102281,20.4633186,1603.9,1603.8,1.24684]
[1745254102881,11.2278438,1603.9,1603.8,1.24684]
[1745254103082,0.00933619,1604.0,1603.9,1.24681]
[1745254103284,20.47265479,1604.0,1603.9,7.18981]
[1745254103688,20.47265479,1604.0,1603.9,1.24681]
[1745254103989,0.00933619,1604.0,1603.9,1.24681]
[1745254104386,0.00933619,1604.0,1603.9,6.19191]
[1745254104590,0.00933619,1604.0,1603.8,5.943]
[1745254104591,3.11702,1603.9,1603.4,40.8]
[1745254104894,3.1293,1603.8,1603.7,1.24696]
[1745254105096,14.3571438,1603.8,1603.7,1.24696]
[1745254105294,1.6618,1603.8,1603.7,1.24696]
[1745254106387,0.00933619,1604.0,1603.9,1.24681]
[1745254107091,1.5182,1604.3,1603.9,1.24681]
[1745254107092,3.2078,1604.3,1604.2,1.24657]
[1745254107287,25.41798241,1604.3,1604.2,1.24657]
[1745254107489,4.45406,1604.6,1604.2,3.11643]
[1745254107684,3.2078,1604.3,1604.2,1.24657]
[1745254107889,1.24662,1604.2,1604.0,7.18969]
[1745254108092,14.2306638,1604.2,1604.0,7.18969]
[1745254108293,11.2278438,1604.1,1604.0,1.24669]
[1745254108490,0.00933619,1604.3,1604.2,1.24657]
[1745254108787,0.00933619,1604.3,1604.2,7.18957]
[1745254109391,21.7098386,1604.3,1604.1,1.24659]
[1745254109592,14.2306838,1604.2,1603.9,0.00933619]
[1745254109893,14.2306838,1604.2,1604.0,5.943]
[1745254109894,1.24665,1604.1,1604.0,5.943]
[1745254110087,14.2306938,1604.1,1604.0,5.943]
[1745254110287,1.24673,1604.0,1603.9,0.00933619]
[1745254110486,17.4654738,1604.0,1603.9,0.00933619]
[1745254110688,26.69161241,1604.0,1603.9,0.00933619]
[1745254111497,26.69161241,1604.0,1603.9,1.25614619]
[1745254111498,13.0109438,1604.0,1603.9,1.25614619]
[1745254111802,1.7831,1604.0,1603.9,1.25614619]
[1745254112494,1.7831,1604.0,1603.9,7.19914619]
[1745254113097,0.00933619,1604.3,1604.2,1.24657]
[1745254113301,21.00279912,1604.3,1604.2,1.24657]
[1745254113896,11.77666051,1604.3,1604.2,7.18957]
[1745254114507,21.00279912,1604.3,1604.2,7.18957]
[1745254114701,13.51676051,1604.3,1604.2,7.18957]
[1745254115008,0.54881671,1604.3,1604.2,7.18957]
[1745254115205,0.54881671,1604.3,1604.2,8.88537]
[1745254115805,5.72947998,1604.5,1604.4,1.24642]
[1745254116003,3.98937998,1604.5,1604.4,4.45422]
[1745254116204,3.98937998,1604.5,1604.4,42.04642]
[1745254116606,3.98937998,1604.5,1604.4,47.99142]
[1745254116901,3.98937998,1604.5,1604.4,51.19922]
[1745254117808,0.00933619,1604.6,1604.5,1.24634]
[1745254118102,1e-08,1604.6,1604.5,2.98264]
[1745254118411,4.05454242,1604.7,1604.6,1.24626]
[1745254118701,4.05454242,1604.7,1604.6,4.45406]
[1745254119095,1.7667,1604.9,1604.6,4.45406]
[1745254119296,22.22068241,1604.9,1604.8,1.24611]
[1745254119500,22.2300186,1604.9,1604.8,1.24611]
[1745254119700,1.77603619,1604.9,1604.8,1.24611]
[1745254119895,1.77603619,1604.9,1604.8,6.19001]
[1745254120295,1.77603619,1604.9,1604.8,1.24611]
[1745254120296,22.2300186,1604.9,1604.8,1.24611]
[1745254121101,13.00387999,1604.9,1604.8,1.24611]
[1745254121308,1.77603619,1604.9,1604.8,7.19011]
[1745254121510,1.77603619,1604.9,1604.8,10.39791]
[1745254122698,6.19e-06,1604.9,1604.8,10.39791]
[1745254123403,6.19e-06,1604.9,1604.8,4.45391]
[1745254123603,6.19e-06,1604.9,1604.8,10.39691]
[1745254124202,6.19e-06,1604.9,1604.8,15.39691]
[1745254124604,8.01856171,1605.7,1605.6,1.24549]
[1745254124911,17.24470032,1605.7,1605.6,7.18849]
[1745254125112,28.47254412,1605.7,1605.6,7.18849]
[1745254125404,28.47254412,1605.7,1605.6,42.04549]
[1745254127914,29.00324441,1605.7,1605.6,42.04549]
[1745254128109,8.549262,1605.7,1605.6,42.04549]
[1745254128311,0.53070029,1605.7,1605.6,43.78139]
[1745254128615,0.53070029,1605.7,1605.6,57.98749]
[1745254129711,0.53070029,1605.7,1605.6,52.04549]
[1745254129910,0.53070029,1605.7,1605.6,57.98649]
[1745254130111,29.1924827,1605.7,1605.6,57.98649]
[1745254130311,32.1527827,1605.7,1605.6,11.24549]
[1745254130718,23.9449827,1605.7,1605.6,52.04549]
[1745254130914,3.49100029,1605.7,1605.6,52.04549]
[1745254131414,23.9449827,1605.7,1605.6,52.04549]
[1745254131621,23.9449827,1605.7,1605.6,57.98649]
[1745254134712,20.9846827,1605.7,1605.6,57.98649]
[1745254135210,20.9846827,1605.7,1605.6,47.98649]
[1745254135719,6.19e-06,1605.8,1605.7,1.24541]
[1745254136019,6.19e-06,1605.8,1605.7,10.39421]
[1745254136221,6.19e-06,1605.8,1605.7,4.45321]
[1745254136519,19.40391889,1605.8,1605.7,47.98641]
[1745254138121,11.22784999,1605.8,1605.7,47.98641]
[1745254138321,11.22784999,1605.8,1605.7,42.04541]
[1745254138517,11.22784999,1605.8,1605.7,47.98541]
[1745254138918,19.40391889,1605.8,1605.7,47.98541]
[1745254139309,11.22784999,1605.8,1605.7,47.98541]
[1745254139616,6.19e-06,1605.8,1605.7,47.98541]
[1745254139814,6.19e-06,1605.9,1605.8,1.24533]
[1745254140013,6.19e-06,1605.9,1605.8,4.45313]
[1745254142419,6.19e-06,1605.9,1605.8,10.39313]
[1745254143217,2.38e-06,1606.0,1605.9,1.24525]
[1745254143521,2.38e-06,1606.0,1605.9,2.97005]
[1745254143719,2.38e-06,1606.0,1605.9,6.92625]
[1745254144115,19.40391508,1606.0,1605.9,6.92625]
[1745254144313,19.40391508,1606.0,1605.9,1.24525]
[1745254144314,8.17607128,1606.0,1605.9,1.24525]
[1745254144519,19.40391508,1606.0,1605.9,6.92625]
[1745254144823,2.38e-06,1606.0,1605.9,6.92625]
[1745254145017,2.38e-06,1606.0,1605.9,8.65855]
[1745254146412,1.6763,1606.1,1605.9,8.65855]
[1745254146617,0.37704238,1606.1,1606.0,4.45298]
[1745254146818,0.37704238,1606.1,1606.0,10.13398]
[1745254147218,19.78095508,1606.1,1606.0,10.13398]
[1745254148020,20.30924664,1606.1,1606.0,10.13398]
[1745254149119,20.30924664,1606.1,1606.0,4.45298]
[1745254149325,25.30924664,1606.1,1606.0,6.92618]
[1745254149526,26.83054664,1606.1,1606.0,6.92618]
[1745254149725,26.83054664,1606.1,1606.0,1.24518]
[1745254149919,26.83054664,1606.1,1606.0,6.92518]
[1745254150118,26.83054664,1606.1,1606.0,1.24518]
[1745254150321,26.83054664,1606.1,1606.0,6.92518]
[1745254150519,0.52829156,1606.1,1606.0,6.92518]
[1745254150719,1.56e-06,1606.1,1606.0,8.59708]
[1745254151426,4.76e-06,1606.2,1606.1,1.2451]
[1745254151727,4.76e-06,1606.2,1606.1,4.4529]
[1745254153015,3.2078,1607.0,1606.1,14.4158]
[1745254153219,10.16032618,1606.9,1606.8,1.24456]
[1745254153422,10.16032618,1606.9,1606.8,6.92456]
[1745254153623,1.7882,1606.9,1606.8,50.93236]
[1745254153924,10.92786171,1607.1,1607.0,1.2444]
[1745254154121,29.26425679,1607.1,1607.0,1.2444]
[1745254154321,6.35116171,1607.1,1607.0,4.4522]
[1745254154527,6.35116171,1607.1,1607.0,10.1322]
[1745254154719,4.92222171,1607.1,1607.0,10.1322]
[1745254155122,0.54459171,1607.1,1607.0,10.1322]
[1745254155426,1.71e-06,1607.1,1607.0,10.1322]
[1745254156229,1.7882,1607.2,1607.1,1.24432]
[1745254156230,0.04395171,1607.2,1607.1,1.24432]
[1745254156428,8.56533645,1607.3,1607.2,1.24425]
[1745254156632,4.87404645,1607.3,1607.2,4.45205]
[1745254156926,3.0122,1607.6,1607.5,1.24401]
[1745254157126,24.55639508,1607.6,1607.5,1.24401]
[1745254157333,10.16032618,1607.5,1607.4,1.24408]
[1745254157724,15.16032618,1607.5,1607.4,1.24408]
[1745254158232,10.16032618,1607.5,1607.4,1.24408]
[1745254159423,11.82242618,1607.5,1607.4,1.24408]
[1745254159929,3.46179645,1607.8,1607.7,1.24386]
[1745254160130,12.25430263,1607.8,1607.7,6.92186]
[1745254160322,15.46210263,1607.8,1607.7,1.24386]
[1745254160924,15.46210263,1607.8,1607.6,5.68733619]
[1745254161125,10.45460618,1607.7,1607.6,6.93127619]
[1745254161825,3.2078,1607.8,1607.7,1.24386]
[1745254162031,12.00030618,1607.8,1607.7,3.03426]
[1745254162225,8.79250618,1607.8,1607.7,3.03426]
[1745254163627,4.9913,1608.0,1607.8,1.24372]
[1745254163830,8.79250618,1607.9,1607.6,0.00933619]
[1745254164032,3.2078,1607.7,1607.6,5.68633619]
[1745254164237,3.72936169,1607.7,1607.6,6.93027619]
[1745254164426,20.20292787,1607.7,1607.2,3.11062]
[1745254164627,3.2078,1607.5,1607.3,5.676]
[1745254164831,0.52156169,1607.4,1607.3,5.676]
[1745254165026,9.31406787,1607.4,1607.2,6.92022]
[1745254165328,13.95906787,1607.3,1607.2,6.92022]
[1745254165635,1.95876169,1607.3,1607.2,6.92022]
[1745254165834,10.75126787,1607.3,1607.2,6.92022]
[1745254166031,10.75126787,1607.3,1607.1,1.25358619]
[1745254166233,8.79250618,1607.2,1607.1,1.25358619]
[1745254166429,9.31406787,1607.2,1607.1,6.92958619]
[1745254167336,9.31406787,1607.2,1607.1,1.25358619]
[1745254167635,9.31406787,1607.2,1607.1,6.92958619]
[1745254167834,10.74226787,1607.2,1607.1,6.92958619]
[1745254168036,10.74226787,1607.2,1607.1,1.25358619]
[1745254168238,10.74226787,1607.2,1607.1,6.92958619]
[1745254172335,10.74226787,1607.2,1607.1,5.68533619]
[1745254172535,10.74226787,1607.2,1607.1,6.92965619]
[1745254172735,10.74226787,1607.2,1607.1,1.25365619]
[1745254173235,10.74226787,1607.2,1607.1,6.68865619]
[1745254173435,10.74226787,1607.2,1607.1,1.25365619]
[1745254173641,10.74226787,1607.2,1607.1,6.68865619]
[1745254174643,11.98651787,1607.2,1607.1,5.44433619]
[1745254174843,11.98651787,1607.2,1607.1,0.00933619]
[1745254175035,10.74226787,1607.2,1607.1,1.25365619]
[1745254175236,11.98651787,1607.2,1607.1,0.00933619]
[1745254175436,10.74226787,1607.2,1607.1,1.25365619]
[1745254176834,12.48146787,1607.2,1607.1,1.25365619]
[1745254178849,12.48146787,1607.2,1607.1,0.00933619]
[1745254179042,12.48146787,1607.2,1607.1,1.25365619]
[1745254179747,13.72571787,1607.2,1607.1,0.00933619]
[1745254180047,12.48146787,1607.2,1607.1,1.25365619]
[1745254180248,20.59223787,1607.2,1606.8,46.236]
[1745254180437,3.2078,1606.9,1606.6,3.11176]
[1745254180744,1.24471,1606.6,1606.4,5.436]
[1745254180950,1.24471,1606.6,1606.4,6.68085]
[1745254180951,4.9576,1606.5,1606.4,6.68085]